[Event "XII Cracow ICC-A 2024"]
[Site "Krakow"]
[Date "2024.06.22"]
[Round "1.21"]
[White "Lewtak, Damian"]
[Black "Mahitosh Dey"]
[Result "1/2-1/2"]
[ECO "C66"]
[WhiteElo "2370"]
[BlackElo "2232"]
[Annotator "ChessBase"]
[PlyCount "62"]
[EventDate "2024.06.20"]
[EventType "swiss"]
[EventCountry "POL"]
[SourceTitle "playchess.com"]
[Source "ChessBase"]
[SourceQuality "1"]
[TimeControl "40/5400+30:1800+30"]

1. e4 {[%emt 0:00:02]} e5 {[%emt 0:00:14]} 2. Nf3 {[%emt 0:00:06]} Nc6 {[%emt 0:00:09]} 3. Bb5 {[%emt 0:00:51]} Nf6 {[%emt 0:00:24]} 4. O-O {[%emt 0:01:28]} d6 {[%emt 0:00:23]} 5. d4 {[%emt 0:02:36]} Bd7 {[%emt 0:03:28]} 6. Re1 {[%emt 0:05:17]} Nxd4 {[%emt 0:09:41]} 7. Bxd7+ {[%emt 0:00:31]} Qxd7 {[%emt 0:00:13]} 8. Nxd4 {[%emt 0:00:08]} exd4 {[%emt 0:00:03]} 9. Qxd4 {[%emt 0:00:09]} Be7 {[%emt 0:00:09]} 10. Nc3 {[%emt 0:09:46]} O-O {[%emt 0:00:07]} 11. h3 {[%emt 0:00:39]} c6 {[%emt 0:01:45]} 12. Bg5 {[%emt 0:04:12]} Nd5 {[%emt 0:03:45]} 13. Bxe7 {[%emt 0:08:35]} Nxe7 {[%emt 0:00:07]} 14. Rad1 {[%emt 0:00:06]} Rfd8 {[%emt 0:00:03]} 15. Rd3 {[%emt 0:11:13]} Qe6 {[%emt 0:00:06]} 16. Red1 {[%emt 0:01:44]} Rd7 {[%emt 0:04:01]} 17. f4 {[%emt 0:07:17]} f5 {[%emt 0:01:00]} 18. Re3 {[%emt 0:06:21]} fxe4 {[%emt 0:02:53]} 19. Rxe4 {[%emt 0:00:42]} Qf7 {[%emt 0:00:09]} 20. Re2 {[%emt 0:05:25]} Nf5 {[%emt 0:00:20]} 21. Qd3 {[%emt 0:02:10]} d5 {[%emt 0:02:29]} 22. Ne4 {[%emt 0:02:08]} h6 {[%emt 0:03:43]} 23. Nc5 {[%emt 0:04:59]} Re7 {[%emt 0:00:34]} 24. Rde1 {[%emt 0:01:00]} Rae8 {[%emt 0:00:24]} 25. Rxe7 {[%emt 0:03:37]} Rxe7 {[%emt 0:00:06]} 26. Rxe7 {[%emt 0:00:12]} Qxe7 {[%emt 0:00:35]} 27. Qxf5 {[%emt 0:00:49]} Qxc5+ {[%emt 0:00:04]} 28. Kh2 {[%emt 0:00:16]} Qe3 {[%emt 0:00:51]} 29. Qc8+ {[%emt 0:00:13]} Kh7 {[%emt 0:00:06]} 30. Qf5+ {[%emt 0:00:06]} Kg8 {[%emt 0:00:03]} 31. Qc8+ {[%emt 0:00:17]} Kf7 1/2-1/2

[Event "XII Cracow ICC-A 2024"]
[Site "Krakow"]
[Date "2024.06.22"]
[Round "1.22"]
[White "Kutowski, Marcel"]
[Black "Apoorv Kamble"]
[Result "0-1"]
[ECO "B16"]
[WhiteElo "2230"]
[BlackElo "2369"]
[Annotator "ChessBase"]
[PlyCount "99"]
[EventDate "2024.06.20"]
[EventType "swiss"]
[EventCountry "POL"]
[SourceTitle "playchess.com"]
[Source "ChessBase"]
[SourceQuality "1"]
[TimeControl "40/5400+30:1800+30"]

1. e4 {[%emt 0:00:03]} c6 {[%emt 0:00:38]} 2. d4 {[%emt 0:00:27]} d5 {[%emt 0:00:04]} 3. Nc3 {[%emt 0:00:23]} dxe4 {[%emt 0:01:17]} 4. Nxe4 {[%emt 0:00:08]} Nf6 {[%emt 0:00:34]} 5. Nxf6+ {[%emt 0:00:21]} gxf6 {[%emt 0:00:08]} 6. Ne2 {[%emt 0:08:15]} Bg4 {[%emt 0:05:41]} 7. c3 {[%emt 0:03:54]} Nd7 {[%emt 0:13:03]} 8. Qc2 {[%emt 0:06:37]} Bh5 {[%emt 0:02:08]} 9. Nf4 {[%emt 0:02:13]} Bg6 {[%emt 0:00:08]} 10. Nxg6 {[%emt 0:00:59]} hxg6 {[%emt 0:00:11]} 11. Be2 {[%emt 0:02:54]} Qc7 {[%emt 0:00:40]} 12. h4 {[%emt 0:06:04]} O-O-O {[%emt 0:04:35]} 13. Be3 {[%emt 0:06:05]} Bh6 {[%emt 0:05:51]} 14. Qd2 {[%emt 0:01:45]} Bxe3 {[%emt 0:01:02]} 15. Qxe3 {[%emt 0:00:09]} Qa5 {[%emt 0:08:29]} 16. Bc4 {[%emt 0:05:21]} e6 {[%emt 0:01:26]} 17. O-O-O {[%emt 0:00:40]} f5 {[%emt 0:02:16]} 18. Kb1 {[%emt 0:09:16]} Nf6 {[%emt 0:01:55]} 19. Be2 {[%emt 0:03:10]} Nd5 {[%emt 0:12:33]} 20. Qe5 {[%emt 0:05:14]} Qc7 {[%emt 0:04:47]} 21. Qxc7+ {[%emt 0:03:16]} Kxc7 {[%emt 0:01:03]} 22. Bf3 {[%emt 0:00:50]} Nf6 {[%emt 0:01:36]} 23. g3 {[%emt 0:04:07]} b6 {[%emt 0:02:45]} 24. Kc2 {[%emt 0:03:32]} Ne8 {[%emt 0:08:16]} 25. Rde1 {[%emt 0:07:28]} Nd6 {[%emt 0:02:11]} 26. b3 {[%emt 0:01:58]} Rde8 {[%emt 0:04:29]} 27. Re2 {[%emt 0:13:55]} f6 {[%emt 0:07:28]} 28. Rhe1 {[%emt 0:00:05]} Kd7 {[%emt 0:00:21]} 29. c4 {[%emt 0:00:57]} Nf7 {[%emt 0:02:15]} 30. b4 {[%emt 0:02:21]} e5 {[%emt 0:06:05]} 31. dxe5 {[%emt 0:00:12]} fxe5 {[%emt 0:00:36]} 32. Rd2+ {[%emt 0:00:19]} Kc7 {[%emt 0:00:04]} 33. Red1 {[%emt 0:00:43]} Re7 {[%emt 0:00:12]} 34. Be2 {[%emt 0:01:08]} Rd8 {[%emt 0:00:44]} 35. c5 {[%emt 0:01:48]} bxc5 {[%emt 0:01:40]} 36. bxc5 {[%emt 0:00:13]} Rxd2+ {[%emt 0:00:36]} 37. Rxd2 {[%emt 0:00:16]} e4 {[%emt 0:00:01]} 38. Bc4 {[%emt 0:01:36]} Ne5 {[%emt 0:00:38]} 39. Kc3 {[%emt 0:00:24]} Nd7 {[%emt 0:00:55]} 40. Kb4 {[%emt 0:00:44]} Re5 {[%emt 0:00:32]} 41. Rd6 {[%emt 0:30:36]} a5+ {[%emt 0:01:19]} 42. Kc3 {[%emt 0:00:00]} Rxc5 {[%emt 0:02:25]} 43. Rxg6 {[%emt 0:00:00]} Nb6 {[%emt 0:02:01]} 44. h5 {[%emt 0:00:00]} Rxc4+ {[%emt 0:00:35]} 45. Kb3 {[%emt 0:00:00]} a4+ {[%emt 0:03:19]} 46. Kb2 {[%emt 0:00:00]} Rb4+ {[%emt 0:00:19]} 47. Kc2 {[%emt 0:00:00]} a3 {[%emt 0:00:36]} 48. h6 {[%emt 0:00:00]} Rb2+ {[%emt 0:00:12]} 49. Kc3 {[%emt 0:00:00]} Rxf2 {[%emt 0:00:36]} 50. Kd4 0-1

[Event "XII Cracow ICC-A 2024"]
[Site "Krakow"]
[Date "2024.06.22"]
[Round "1.24"]
[White "Gorkiewicz, Mateusz"]
[Black "Citak, Selim"]
[Result "1/2-1/2"]
[ECO "B54"]
[WhiteElo "2223"]
[BlackElo "2345"]
[Annotator "ChessBase"]
[PlyCount "48"]
[EventDate "2024.06.20"]
[EventType "swiss"]
[EventCountry "POL"]
[SourceTitle "playchess.com"]
[Source "ChessBase"]
[SourceQuality "1"]
[TimeControl "40/5400+30:1800+30"]

1. e4 {[%emt 0:00:12]} c5 {[%emt 0:00:28]} 2. Nf3 {[%emt 0:00:10]} d6 {[%emt 0:00:33]} 3. d4 {[%emt 0:00:13]} cxd4 {[%emt 0:00:07]} 4. Nxd4 {[%emt 0:01:27]} Nf6 {[%emt 0:00:08]} 5. f3 {[%emt 0:03:53]} Nc6 {[%emt 0:01:41]} 6. c4 {[%emt 0:01:14]} Nxd4 {[%emt 0:00:41]} 7. Qxd4 {[%emt 0:00:07]} g6 {[%emt 0:00:12]} 8. Be3 {[%emt 0:01:15]} Bg7 {[%emt 0:00:19]} 9. Be2 {[%emt 0:03:42]} O-O {[%emt 0:08:19]} 10. Qd2 {[%emt 0:00:54]} Be6 {[%emt 0:00:55]} 11. Nc3 {[%emt 0:04:35]} Qa5 {[%emt 0:00:27]} 12. O-O {[%emt 0:18:47]} Rfc8 {[%emt 0:03:17]} 13. b3 {[%emt 0:01:51]} a6 {[%emt 0:03:46]} 14. Rac1 {[%emt 0:02:02]} b5 {[%emt 0:01:09]} 15. Nd5 {[%emt 0:04:56]} Qxd2 {[%emt 0:01:04]} 16. Bxd2 {[%emt 0:00:07]} Nxd5 {[%emt 0:01:30]} 17. cxd5 {[%emt 0:02:55]} Bd4+ {[%emt 0:00:27]} 18. Kh1 {[%emt 0:00:07]} Bd7 {[%emt 0:00:11]} 19. Rxc8+ {[%emt 0:13:30]} Rxc8 {[%emt 0:00:23]} 20. Rc1 {[%emt 0:06:10]} Rxc1+ {[%emt 0:00:41]} 21. Bxc1 {[%emt 0:00:05]} f5 {[%emt 0:00:39]} 22. Bd2 {[%emt 0:03:02]} fxe4 {[%emt 0:02:27]} 23. fxe4 {[%emt 0:00:05]} Kf7 {[%emt 0:00:25]} 24. g4 {[%emt 0:05:33]} e6 {[%emt 0:06:56]} 1/2-1/2